fUSD/lending_fUSD_20240104
["ID","MTS","AMOUNT","RATE_DAILY","PERIOD"]
[310219730,1704402696418,-729.82,0.00034794,2]
[310219731,1704402696427,-500.0,0.00034794,2]
[310219732,1704402696437,-500.0,0.00034794,2]
[310219733,1704402696447,-2257.92,0.00034794,2]
[310219734,1704402696456,-500.0,0.00034794,2]
[310219735,1704402696466,-500.0,0.00034794,2]
[310219736,1704402696475,-1167.4,0.00034794,2]
[310219737,1704402696487,-831.43,0.00034794,2]
[310219738,1704402696496,-1414.25,0.00034794,2]
[310219739,1704402696506,-1040.38,0.00034794,2]
[310219740,1704402696515,-500.0,0.00034794,2]
[310219741,1704402696525,-500.0,0.00034794,2]
[310219742,1704402696535,-828.1,0.00034794,2]
[310219743,1704402696544,-500.0,0.00034794,2]
[310219744,1704402696554,-500.0,0.00034794,2]
[310219745,1704402696565,-500.0,0.00034794,2]
[310219746,1704402696574,-500.0,0.00034794,2]
[310219747,1704402696585,-500.0,0.00034794,2]
[310219748,1704402696594,-500.0,0.00034794,2]
[310219749,1704402696604,-678.15,0.00034794,2]
[310219750,1704402696614,-500.0,0.00034794,2]
[310219751,1704402696623,-500.0,0.00034794,2]
[310219752,1704402696633,-500.0,0.00034794,2]
[310219753,1704402696643,-500.0,0.00034794,2]
[310219754,1704402696652,-500.0,0.00034794,2]
[310219755,1704402696662,-500.0,0.00034794,2]
[310219756,1704402696672,-1448.36,0.00034794,2]
[310219757,1704402696681,-153.7,0.000348,2]
[310219758,1704402696691,-153.7,0.000348,2]
[310219759,1704402696700,-153.7,0.000348,2]
[310219760,1704402696709,-153.7,0.000348,2]
[310219761,1704402696718,-153.7,0.000348,2]
[310219762,1704402696730,-6561.1064217,0.000349,2]
[310219763,1704402696740,-6561.10642165,0.000349,2]
[310219764,1704402696749,-6561.10642165,0.000349,2]
[310219765,1704402696760,-6561.10642165,0.000349,2]
[310219766,1704402696770,-6561.10642165,0.000349,2]
[310219767,1704402696781,-6561.10642165,0.000349,2]
[310219768,1704402696790,-6561.10642165,0.000349,2]
[310219769,1704402696799,-6561.10642165,0.000349,2]
[310219770,1704402696810,-157.47517809,0.000349,2]
[310219771,1704402696820,-157.47517805,0.000349,2]
[310219772,1704402696830,-157.47517805,0.000349,2]
[310219773,1704402696839,-157.47517805,0.000349,2]
[310219774,1704402696849,-157.47517805,0.000349,2]
[310219775,1704402696859,-157.47517805,0.000349,2]
[310219776,1704402696868,-157.47517805,0.000349,2]
[310219777,1704402696878,-512.62863925,0.0003499,8]
[310219778,1704402696887,-150.0,0.00034999,2]
[310219779,1704402696897,-100000.0,0.00035,5]
[310219780,1704402696906,-446.78845482,0.00035,4]
[310219781,1704402696916,-201.35722068,0.00035,2]
[310219782,1704402696925,-617.90544107,0.00035,4]
[310219783,1704402696935,-2500.0,0.00035,2]
[310219784,1704402696944,-11059.65,0.00035,3]
[310219785,1704402696953,-18957.59309852,0.00035,4]
[310219786,1704402696962,-40230.38617003,0.00035,2]
[310219787,1704402696971,-32230.92741662,0.00035,2]
[310219788,1704402696982,-931.42627021,0.00035,2]
[310219789,1704402696991,-106453.31130748,0.00035,2]
[310219790,1704402697000,-185.15841636,0.00035,4]
[310219791,1704402697009,-456913.69560059,0.00035,7]
[310219792,1704402697019,-3073.57459273,0.00035,7]
[310219793,1704402697028,-1254.14894573,0.00035,4]
[310219794,1704402697038,-5002.0,0.00035,4]
[310219795,1704402697047,-450.0,0.00035,3]
[310219796,1704402697056,-1000.0,0.00035,5]
[310219797,1704402697066,-341.20199791,0.00035,2]
[310219798,1704402697076,-341.20199791,0.00035,2]
[310219799,1704402697085,-341.20199791,0.00035,2]
[310219800,1704402697096,-151.0,0.00035,7]
[310219801,1704402697105,-3998.38707801,0.00035,2]
[310219802,1704402697114,-6829.27155038,0.00035045,2]
[310219803,1704402697124,-152.40859416,0.00035065,2]
[310219804,1704402697133,-500.0,0.00035067,2]
[310219805,1704402697142,-151.0,0.00035068,7]
[310219806,1704402697153,-500.0,0.00035068,2]
[310219807,1704402697162,-500.0,0.00035068,2]
[310219808,1704402697172,-500.0,0.00035068,2]
[310219809,1704402697181,-500.0,0.00035068,2]
[310219810,1704402697192,-516.64531893,0.00035068,2]
[310219811,1704402697202,-500.0,0.00035068,2]
[310219812,1704402697211,-500.0,0.00035068,2]
[310219813,1704402697222,-554.75,0.00035068,2]
[310219814,1704402697232,-545.18541683,0.00035068,2]
[310219815,1704402697241,-500.0,0.00035068,2]
[310219816,1704402697249,-500.0,0.00035068,2]
[310219817,1704402697259,-500.0,0.00035068,2]
[310219818,1704402697269,-500.0,0.00035068,2]
[310219819,1704402697278,-500.0,0.00035068,2]
[310219820,1704402697287,-500.0,0.00035068,2]
[310219821,1704402697297,-500.0,0.00035068,2]
[310219822,1704402697306,-500.0,0.00035068,2]
[310219823,1704402697316,-500.0,0.00035068,2]
[310219824,1704402697325,-500.0,0.00035068,2]
[310219825,1704402697335,-500.0,0.00035068,2]
[310219826,1704402697345,-500.0,0.00035068,2]
[310219827,1704402697355,-500.0,0.00035068,2]
[310219828,1704402697364,-500.0,0.00035068,2]
[310219829,1704402697374,-500.0,0.00035068,2]
[310219830,1704402697383,-500.0,0.00035068,2]
[310219831,1704402697394,-500.0,0.00035068,2]
[310219832,1704402697405,-500.0,0.00035068,2]
[310219833,1704402697415,-500.0,0.00035068,2]
[310219834,1704402697426,-500.0,0.00035068,2]
[310219835,1704402697436,-500.0,0.00035068,2]
[310219836,1704402697446,-500.0,0.00035068,2]
[310219837,1704402697456,-500.0,0.00035068,2]
[310219838,1704402697465,-500.0,0.00035068,2]
[310219839,1704402697475,-180.16584187,0.00035068,2]
[310219840,1704402697487,-1160.79,0.00035068,2]
[310219841,1704402697498,-500.0,0.00035068,2]
[310219842,1704402697509,-187.26307747,0.00035068,2]
[310219843,1704402697519,-500.0,0.00035068,2]
[310219844,1704402697529,-500.0,0.00035068,2]
[310219845,1704402697538,-500.0,0.00035068,2]
[310219846,1704402697548,-500.0,0.00035068,2]
[310219847,1704402697558,-594.58044732,0.00035068,2]
[310219848,1704402697569,-738.09,0.00035068,2]
[310219849,1704402697579,-500.0,0.00035068,2]
[310219850,1704402697588,-412.08039223,0.00035068,2]
[310219851,1704402697598,-596.58,0.00035068,2]
[310219852,1704402697607,-500.0,0.00035068,2]
[310219853,1704402697617,-500.0,0.00035068,2]
[310219854,1704402697626,-807.57,0.00035068,2]
[310219855,1704402697636,-500.0,0.00035068,2]
[310219856,1704402697646,-500.0,0.00035068,2]
[310219857,1704402697655,-500.0,0.00035068,2]
[310219858,1704402697665,-500.0,0.00035068,2]
[310219859,1704402697676,-527.72,0.00035068,2]
[310219860,1704402697685,-687.6,0.00035068,2]
[310219861,1704402697696,-500.0,0.00035068,2]
[310219862,1704402697705,-500.0,0.00035068,2]
[310219863,1704402697715,-500.0,0.00035068,2]
[310219864,1704402697724,-500.0,0.00035068,2]
[310219865,1704402697735,-500.0,0.00035068,2]
[310219866,1704402697745,-500.0,0.00035068,2]
[310219867,1704402697756,-500.0,0.00035068,2]
[310219868,1704402697766,-500.0,0.00035068,2]
[310219869,1704402697776,-500.0,0.00035068,2]
[310219870,1704402697785,-500.0,0.00035068,2]
[310219871,1704402697794,-500.0,0.00035068,2]
[310219872,1704402697805,-500.0,0.00035068,2]
[310219873,1704402697815,-500.0,0.00035068,2]
[310219874,1704402697825,-500.0,0.00035068,2]
[310219875,1704402697835,-500.0,0.00035068,2]
[310219876,1704402697845,-356.12355858,0.00035068,2]
[310219877,1704402697855,-602.44,0.00035068,2]
[310219878,1704402697865,-500.0,0.00035068,2]
[310219879,1704402697877,-500.0,0.00035068,2]
[310219880,1704402697886,-660.7,0.00035068,2]
[310219881,1704402697895,-500.0,0.00035068,2]
[310219882,1704402697905,-722.69,0.00035068,2]
[310219883,1704402697914,-598.95,0.00035068,2]
[310219884,1704402697923,-500.0,0.00035068,2]
[310219885,1704402697932,-541.66,0.00035068,2]
[310219886,1704402697941,-500.0,0.00035068,2]
[310219887,1704402697950,-500.0,0.00035068,2]
[310219888,1704402697959,-505.83,0.00035068,2]
[310219889,1704402697968,-500.0,0.00035068,2]
[310219890,1704402697979,-500.0,0.00035068,2]
[310219891,1704402697989,-500.0,0.00035068,2]
[310219892,1704402697997,-500.0,0.00035068,2]
[310219893,1704402698006,-500.0,0.00035068,2]
[310219894,1704402698016,-647.41783059,0.00035068,2]
[310219895,1704402698025,-500.0,0.00035068,2]
[310219896,1704402698035,-500.0,0.00035068,2]
[310219897,1704402698044,-718.72,0.00035068,2]
[310219898,1704402698054,-680.79,0.00035068,2]
[310219899,1704402698063,-500.0,0.00035068,2]
[310219900,1704402698072,-500.0,0.00035068,2]
[310219901,1704402698082,-500.0,0.00035068,2]
[310219902,1704402698090,-500.0,0.00035068,2]
[310219903,1704402698099,-1621.27,0.00035068,2]
[310219904,1704402698108,-500.0,0.00035068,2]
[310219905,1704402698117,-500.0,0.00035068,2]
[310219906,1704402698127,-500.0,0.00035068,2]
[310219907,1704402698137,-738.09,0.00035068,2]
[310219908,1704402698147,-519.11,0.00035068,2]
[310219909,1704402698156,-500.0,0.00035068,2]
[310219910,1704402698165,-500.0,0.00035068,2]
[310219911,1704402698175,-754.73,0.00035068,2]
[310219912,1704402698185,-500.0,0.00035068,2]
[310219913,1704402698194,-500.0,0.00035068,2]
[310219914,1704402698203,-578.29,0.00035068,2]
[310219915,1704402698213,-500.0,0.00035068,2]
[310219916,1704402698222,-500.0,0.00035068,2]
[310219917,1704402698232,-500.0,0.00035068,2]
[310219918,1704402698241,-500.0,0.00035068,2]
[310219919,1704402698251,-947.06,0.00035068,2]
[310219920,1704402698261,-1076.04,0.00035068,2]
[310219921,1704402698271,-500.0,0.00035068,2]
[310219922,1704402698280,-541.45,0.00035068,2]
[310219923,1704402698289,-519.94,0.00035068,2]
[310219924,1704402698298,-500.0,0.00035068,2]
[310219925,1704402698307,-570.54,0.00035068,2]
[310219926,1704402698317,-596.45,0.00035068,2]
[310219927,1704402698326,-917.54,0.00035068,2]
[310219928,1704402698337,-500.0,0.00035068,2]
[310219929,1704402698346,-500.0,0.00035068,2]
[310219930,1704402698356,-373.59224259,0.00035068,2]
[310219931,1704402698365,-500.0,0.00035068,2]
[310219932,1704402698374,-500.0,0.00035068,2]
[310219933,1704402698384,-639.13,0.00035068,2]
[310219934,1704402698394,-500.0,0.00035068,2]
[310219935,1704402698403,-774.28,0.00035068,2]
[310219936,1704402698413,-642.46,0.00035068,2]
[310219937,1704402698423,-500.0,0.00035068,2]
[310219938,1704402698433,-500.0,0.00035068,2]
[310219939,1704402698443,-665.84,0.00035068,2]
[310219940,1704402698452,-500.0,0.00035068,2]
[310219941,1704402698462,-500.0,0.00035068,2]
[310219942,1704402698471,-500.0,0.00035068,2]
[310219943,1704402698482,-500.0,0.00035068,2]
[310219944,1704402698492,-500.0,0.00035068,2]
[310219945,1704402698503,-500.0,0.00035068,2]
[310219946,1704402698512,-500.0,0.00035068,2]
[310219947,1704402698522,-564.52,0.00035068,2]
[310219948,1704402698531,-520.83,0.00035068,2]
[310219949,1704402698540,-1863.96,0.00035068,2]
[310219950,1704402698549,-500.0,0.00035068,2]
[310219951,1704402698559,-500.0,0.00035068,2]
[310219952,1704402698569,-500.0,0.00035068,2]
[310219953,1704402698579,-533.03,0.00035068,2]
[310219954,1704402698589,-1044.47,0.00035068,2]
[310219955,1704402698599,-531.47,0.00035068,2]
[310219956,1704402698608,-564.43,0.00035068,2]
[310219957,1704402698617,-1039.05,0.00035068,2]
[310219958,1704402698626,-791.55,0.00035068,2]
[310219959,1704402698636,-1245.41,0.00035068,2]
[310219960,1704402698646,-327.82,0.00035068,2]
[310219961,1704402698656,-757.45,0.00035068,2]
[310219962,1704402698665,-521.07,0.00035068,2]
[310219963,1704402698675,-162.01,0.00035068,2]
[310219964,1704402698685,-500.0,0.00035068,2]
[310219965,1704402698695,-663.54,0.00035068,2]
[310219966,1704402698705,-988.41,0.00035068,2]
[310219967,1704402698714,-1253.45,0.00035068,2]
[310219968,1704402698723,-623.24,0.00035068,2]
[310219969,1704402698734,-1071.01,0.00035068,2]
[310219970,1704402698745,-500.0,0.00035068,2]
[310219971,1704402698756,-1080.17,0.00035068,2]
[310219972,1704402698766,-500.0,0.00035068,2]
[310219973,1704402698777,-500.0,0.00035068,2]
[310219974,1704402698787,-2123.54,0.00035068,2]
[310219975,1704402698796,-1443.74,0.00035068,2]
[310219976,1704402698806,-500.0,0.00035068,2]
[310219977,1704402698815,-500.0,0.00035068,2]
[310219978,1704402698824,-500.0,0.00035068,2]
[310219979,1704402698833,-500.0,0.00035068,2]
[310219980,1704402698842,-1276.68,0.00035068,2]
[310219981,1704402698852,-500.0,0.00035068,2]
[310219982,1704402698862,-500.0,0.00035068,2]
[310219983,1704402698871,-500.0,0.00035068,2]
[310219984,1704402698880,-500.0,0.00035068,2]
[310219985,1704402698889,-500.0,0.00035068,2]
[310219986,1704402698899,-500.0,0.00035068,2]
[310219987,1704402698908,-500.0,0.00035068,2]
[310219988,1704402698917,-500.0,0.00035068,2]
[310219989,1704402698927,-2290.92,0.00035068,2]
[310219990,1704402698936,-5464.43,0.00035068,2]
[310219991,1704402698946,-1286.86,0.00035068,2]
[310219992,1704402698955,-543.96,0.00035068,2]
[310219993,1704402698964,-623.16,0.00035068,2]
[310219994,1704402698974,-500.0,0.00035068,2]
[310219995,1704402698984,-1530.15,0.00035068,2]
[310219996,1704402698994,-2181.99,0.00035068,2]
[310219997,1704402699004,-500.0,0.00035068,2]
[310219998,1704402699013,-3262.68,0.00035068,2]
[310219999,1704402699023,-1391.97,0.00035068,2]
[310220000,1704402699033,-533.42508366,0.00035068,2]
[310220001,1704402699043,-500.0,0.00035068,2]
[310220002,1704402699053,-756.79,0.00035068,2]
[310220003,1704402699062,-618.7,0.00035068,2]
[310220004,1704402699072,-1812.71,0.00035068,2]
[310220005,1704402699081,-500.0,0.00035068,2]
[310220007,1704402699091,-500.0,0.00035068,2]
[310220008,1704402699100,-500.0,0.00035068,2]
[310220009,1704402699109,-500.0,0.00035068,2]
[310220010,1704402699119,-500.0,0.00035068,2]
[310220011,1704402699128,-927.7,0.00035068,2]
[310220012,1704402699137,-709.7,0.00035068,2]
[310220013,1704402699146,-1742.56,0.00035068,2]
[310220014,1704402699156,-7042.65,0.00035068,2]
[310220015,1704402699164,-500.0,0.00035068,2]
[310220016,1704402699173,-500.0,0.00035068,2]
[310220017,1704402699183,-500.0,0.00035068,2]
[310220018,1704402699192,-500.0,0.00035068,2]
[310220019,1704402699202,-500.0,0.00035068,2]
[310220020,1704402699211,-500.0,0.00035068,2]
[310220021,1704402699222,-500.0,0.00035068,2]
[310220022,1704402699234,-910.81,0.00035068,2]
[310220023,1704402699243,-500.0,0.00035068,2]
[310220024,1704402699253,-500.0,0.00035068,2]
[310220025,1704402699262,-500.0,0.00035068,2]
[310220026,1704402699272,-1009.55,0.00035068,2]
[310220027,1704402699281,-500.0,0.00035068,2]
[310220028,1704402699291,-500.0,0.00035068,2]
[310220029,1704402699301,-1739.77,0.00035068,2]
[310220030,1704402699311,-500.0,0.00035068,2]
[310220031,1704402699320,-500.0,0.00035068,2]
[310220032,1704402699330,-500.0,0.00035068,2]
[310220033,1704402699340,-1282.1,0.00035068,2]
[310220034,1704402699350,-500.0,0.00035068,2]
[310220035,1704402699362,-500.0,0.00035068,2]
[310220036,1704402699372,-500.0,0.00035068,2]
[310220037,1704402699384,-500.0,0.00035068,2]
[310220038,1704402699394,-6408.05,0.00035068,2]
[310220039,1704402699404,-500.0,0.00035068,2]
[310220040,1704402699415,-2129.19,0.00035068,2]
[310220041,1704402699428,-1154.96,0.00035068,2]
[310220042,1704402699438,-500.0,0.00035068,2]
[310220043,1704402699448,-1729.84,0.00035068,2]
[310220044,1704402699459,-500.0,0.00035068,2]
[310220045,1704402699470,-500.0,0.00035068,2]
[310220046,1704402699480,-500.0,0.00035068,2]
[310220047,1704402699490,-500.0,0.00035068,2]
[310220048,1704402699501,-913.73,0.00035068,2]
[310220049,1704402699511,-500.0,0.00035068,2]
[310220050,1704402699522,-500.0,0.00035068,2]
[310220051,1704402699532,-500.0,0.00035068,2]
[310220052,1704402699541,-2264.53,0.00035068,2]
[310220053,1704402699551,-4842.28,0.00035068,2]
[310220054,1704402699562,-500.0,0.00035068,2]
[310220055,1704402699573,-500.0,0.00035068,2]
[310220056,1704402699583,-500.0,0.00035068,2]
[310220057,1704402699594,-500.0,0.00035068,2]
[310220058,1704402699604,-2281.55,0.00035068,2]
[310220059,1704402699614,-500.0,0.00035068,2]
[310220060,1704402699624,-500.0,0.00035068,2]
[310220061,1704402699635,-500.0,0.00035068,2]
[310220062,1704402699645,-500.0,0.00035068,2]
[310220063,1704402699656,-500.0,0.00035068,2]
[310220064,1704402699666,-500.0,0.00035068,2]
[310220065,1704402699676,-500.0,0.00035068,2]
[310220066,1704402699686,-500.0,0.00035068,2]
[310220067,1704402699696,-983.89,0.00035068,2]
[310220068,1704402699706,-539.42,0.00035068,2]
[310220069,1704402699716,-500.0,0.00035068,2]
[310220070,1704402699726,-500.0,0.00035068,2]
[310220071,1704402699741,-500.0,0.00035068,2]
[310220072,1704402699751,-500.0,0.00035068,2]
[310220073,1704402699773,-500.0,0.00035068,2]
[310220074,1704402699787,-1154.67,0.00035068,2]
[310220075,1704402699799,-500.0,0.00035068,2]
[310220076,1704402699809,-599.93,0.00035068,2]
[310220077,1704402699820,-616.54,0.00035068,2]
[310220078,1704402699830,-500.0,0.00035068,2]
[310220079,1704402699841,-1525.72,0.00035068,2]
[310220080,1704402699851,-613.63,0.00035068,2]
[310220081,1704402699863,-637.93,0.00035068,2]
[310220082,1704402699873,-500.0,0.00035068,2]
[310220083,1704402699883,-500.0,0.00035068,2]
[310220084,1704402699894,-500.0,0.00035068,2]
[310220085,1704402699906,-878.05,0.00035068,2]
[310220086,1704402699916,-500.0,0.00035068,2]
[310220087,1704402699926,-500.0,0.00035068,2]
[310220088,1704402699936,-902.92,0.00035068,2]
[310220089,1704402699947,-500.0,0.00035068,2]
[310220090,1704402699957,-500.0,0.00035068,2]
[310220091,1704402699967,-500.0,0.00035068,2]
[310220092,1704402699977,-500.0,0.00035068,2]
[310220093,1704402699995,-589.16,0.00035068,2]
[310220094,1704402700005,-500.0,0.00035068,2]
[310220095,1704402700016,-500.0,0.00035068,2]
[310220096,1704402700027,-500.0,0.00035068,2]
[310220097,1704402700038,-500.0,0.00035068,2]
[310220098,1704402700049,-500.0,0.00035068,2]
[310220099,1704402700060,-500.0,0.00035068,2]
[310220100,1704402700071,-984.56,0.00035068,2]
[310220101,1704402700081,-500.0,0.00035068,2]
[310220102,1704402700092,-563.07,0.00035068,2]
[310220103,1704402700103,-500.0,0.00035068,2]
[310220104,1704402700114,-2695.69,0.00035068,2]
[310220105,1704402700125,-786.61,0.00035068,2]
[310220106,1704402700136,-1449.26,0.00035068,2]
[310220107,1704402700146,-6403.69,0.00035068,2]
[310220108,1704402700157,-565.56,0.00035068,2]
[310220109,1704402700167,-500.0,0.00035068,2]
[310220110,1704402700178,-500.0,0.00035068,2]
[310220111,1704402700188,-573.87,0.00035068,2]
[310220112,1704402700199,-500.0,0.00035068,2]
[310220113,1704402700209,-500.0,0.00035068,2]
[310220114,1704402700220,-750.62,0.00035068,2]
[310220115,1704402700233,-1503.12,0.00035068,2]
[310220116,1704402700243,-500.0,0.00035068,2]
[310220117,1704402700254,-500.0,0.00035068,2]
[310220118,1704402700265,-515.26,0.00035068,2]
[310220119,1704402700276,-500.0,0.00035068,2]
[310220120,1704402700286,-500.0,0.00035068,2]
[310220121,1704402700297,-500.0,0.00035068,2]
[310220122,1704402700308,-1352.57,0.00035068,2]
[310220123,1704402700320,-500.0,0.00035068,2]
[310220124,1704402700330,-4498.58,0.00035068,2]
[310220125,1704402700341,-1460.37,0.00035068,2]
[310220126,1704402700351,-647.5,0.00035068,2]
[310220127,1704402700361,-500.0,0.00035068,2]
[310220128,1704402700372,-500.0,0.00035068,2]
[310220129,1704402700383,-500.0,0.00035068,2]
[310220130,1704402700393,-895.41,0.00035068,2]
[310220131,1704402700404,-500.0,0.00035068,2]
[310220132,1704402700414,-500.0,0.00035068,2]
[310220133,1704402700425,-500.0,0.00035068,2]
[310220134,1704402700435,-500.0,0.00035068,2]
[310220135,1704402700446,-500.0,0.00035068,2]
[310220136,1704402700456,-500.0,0.00035068,2]
[310220137,1704402700466,-761.85,0.00035068,2]
[310220138,1704402700477,-253.98952279,0.00035068,2]
[310220139,1704402700491,-500.0,0.00035068,2]
[310220140,1704402700502,-500.0,0.00035068,2]
[310220141,1704402700512,-500.0,0.00035068,2]
[310220142,1704402700523,-2111.24,0.00035068,2]
[310220143,1704402700533,-500.0,0.00035068,2]
[310220144,1704402700543,-1731.46,0.00035068,2]
[310220145,1704402700553,-500.0,0.00035068,2]
[310220146,1704402700564,-928.81,0.00035068,2]
[310220147,1704402700574,-1937.57,0.00035068,2]
[310220148,1704402700585,-1123.24,0.00035068,2]
[310220149,1704402700596,-550.84,0.00035068,2]
[310220150,1704402700607,-500.0,0.00035068,2]
[310220151,1704402700618,-500.0,0.00035068,2]
[310220152,1704402700630,-500.0,0.00035068,2]
[310220153,1704402700640,-504.38,0.00035068,2]
[310220154,1704402700650,-1072.15,0.00035068,2]
[310220155,1704402700660,-500.0,0.00035068,2]
[310220156,1704402700670,-729.82,0.00035068,2]
[310220157,1704402700681,-500.0,0.00035068,2]
[310220158,1704402700691,-500.0,0.00035068,2]
[310220159,1704402700701,-2257.92,0.00035068,2]
[310220160,1704402700712,-500.0,0.00035068,2]
[310220161,1704402700723,-1167.4,0.00035068,2]
[310220162,1704402700733,-831.43,0.00035068,2]
[310220163,1704402700744,-1414.25,0.00035068,2]
[310220164,1704402700755,-1040.38,0.00035068,2]
[310220165,1704402700765,-500.0,0.00035068,2]
[310220166,1704402700776,-500.0,0.00035068,2]
[310220167,1704402700786,-828.1,0.00035068,2]
[310220168,1704402700796,-500.0,0.00035068,2]
[310220169,1704402700805,-500.0,0.00035068,2]
[310220170,1704402700815,-500.0,0.00035068,2]
[310220171,1704402700824,-500.0,0.00035068,2]
[310220172,1704402700834,-500.0,0.00035068,2]
[310220173,1704402700844,-500.0,0.00035068,2]
[310220174,1704402700855,-678.15,0.00035068,2]
[310220175,1704402700865,-500.0,0.00035068,2]
[310220176,1704402700875,-500.0,0.00035068,2]
[310220177,1704402700886,-500.0,0.00035068,2]
[310220178,1704402700897,-500.0,0.00035068,2]
[310220179,1704402700908,-500.0,0.00035068,2]
[310220180,1704402700919,-500.0,0.00035068,2]
[310220181,1704402700929,-1448.36,0.00035068,2]
[310220182,1704402700940,-1000.0,0.000351,2]
[310220183,1704402700949,-165.27,0.00035136,2]
[310220184,1704402700960,-1352.0,0.00035182,2]
[310220185,1704402700969,-1926.029,0.00035182,2]
[310220186,1704402700979,-943.0,0.00035182,2]
[310220187,1704402700993,-840.0,0.00035182,2]
[310220188,1704402701003,-2758.866,0.00035182,2]
[310220189,1704402701013,-1234.0,0.00035182,2]
[310220190,1704402701025,-1265.0,0.00035182,2]
[310220191,1704402701249,-591.0,0.00035182,2]
[310220192,1704402701259,-1926.0,0.00035182,2]
[310220193,1704402701270,-1138.0,0.00035182,2]
[310220194,1704402701280,-317.0,0.00035182,2]
[310220195,1704402701290,-150.0,0.00035191,2]
[310220196,1704402701300,-150.0,0.00035231,2]
[310220197,1704402701309,-1000.0,0.0003525,2]
[310220198,1704402701319,-500.0,0.00035342,2]
[310220199,1704402701329,-500.0,0.00035342,2]
[310220200,1704402701338,-500.0,0.00035342,2]
[310220201,1704402701347,-500.0,0.00035342,2]
[310220202,1704402701357,-500.0,0.00035342,2]
[310220203,1704402701367,-500.0,0.00035342,2]
[310220204,1704402701376,-554.75,0.00035342,2]
[310220205,1704402701387,-500.0,0.00035342,2]
[310220206,1704402701396,-500.0,0.00035342,2]
[310220207,1704402701406,-500.0,0.00035342,2]
[310220208,1704402701416,-500.0,0.00035342,2]
[310220209,1704402701427,-500.0,0.00035342,2]
[310220210,1704402701436,-500.0,0.00035342,2]
[310220211,1704402701447,-500.0,0.00035342,2]
[310220212,1704402701456,-500.0,0.00035342,2]
[310220213,1704402701466,-500.0,0.00035342,2]
[310220214,1704402701475,-500.0,0.00035342,2]
[310220215,1704402701486,-500.0,0.00035342,2]
[310220216,1704402701496,-500.0,0.00035342,2]
[310220217,1704402701506,-500.0,0.00035342,2]
[310220218,1704402701515,-500.0,0.00035342,2]
[310220219,1704402701524,-500.0,0.00035342,2]
[310220220,1704402701534,-500.0,0.00035342,2]
[310220221,1704402701543,-500.0,0.00035342,2]
[310220222,1704402701553,-500.0,0.00035342,2]
[310220223,1704402701562,-500.0,0.00035342,2]
[310220224,1704402701571,-500.0,0.00035342,2]
[310220225,1704402701580,-500.0,0.00035342,2]
[310220226,1704402701589,-500.0,0.00035342,2]
[310220227,1704402701600,-500.0,0.00035342,2]
[310220228,1704402701609,-1160.79,0.00035342,2]
[310220229,1704402701620,-500.0,0.00035342,2]
[310220230,1704402701629,-500.0,0.00035342,2]